Cogmind - Beta 16.1 @@@ ROGUE MODE // 2026.04.12 @ 21:27:23 Player: shreknel Result: Destroyed by P-60 Hacker with Shock Rifle Performance ------------- Evolutions (3) 1500 Regions Visited (5) 1000 Robots Destroyed (72) 360 Value Destroyed (2699) 2699 Prototype IDs (2) 40 Alien Tech Used (0) 0 Bonus (40) 40 TOTAL SCORE: 5639 Bonus ------- Follower Combat Kills 40 Cogmind --------- Core Integrity 0/700 Matter 296/300 Energy 476/500 System Corruption 7% Temperature Cool (0) Movement Hovering (120) Ox1 Location -7/Storage Parts ------- > --- POWER (1) -------- F-cell Engine > --- PROPULSION (3) --- Gravmag System > --- UTILITY (7) ------ Machine Analyzer Visual Processing Unit Signal Interpreter Improved Signal Interpreter Improved Targeting Computer Armor Integrity Analyzer > --- WEAPON (2) ------- (None) > --- INVENTORY (5) ---- Improved Deuterium Engine Large Storage Unit Improved Terrain Scanner Recoil Stabilizer Flak Gun Peak State ------------ > --- POWER ------------ Hybrid Deuterium Engine > --- PROPULSION ------- Advanced Treads Advanced Treads Advanced Treads > --- UTILITY ---------- Large Storage Unit Structural Scanner Machine Analyzer Visual Processing Unit Improved Sensor Array Signal Interpreter Improved Targeting Computer > --- WEAPON ----------- Gauss Rifle Assault Cannon > --- INVENTORY -------- Hybrid Deuterium Engine Hybrid Deuterium Engine Light Treads Advanced Treads Improved Cooling System Improved Sensor Array Improved Terrain Scanner Armor Integrity Analyzer Recoil Stabilizer ECM Suite Hacking Suite Beam Rifle Particle Gun Flak Gun Mini Grenade Launcher [Rating: 37] Favorites ----------- Power Hybrid Deuterium Engine Engine Hybrid Deuterium Engine Propulsion Advanced Treads Treads Advanced Treads Leg Improved Aluminum Leg Wheel Wheel Hover Unit Gravmag System Utility Large Storage Unit Device Structural Scanner Storage Large Storage Unit Processor Signal Interpreter Hackware Hacking Suite Protection Light Armor Plating Weapon Medium Laser Energy Gun Medium Laser Ballistic Gun Gauss Rifle Ballistic Cannon Flak Cannon Launcher Mini Grenade Launcher Build | -11 -10 -9 -8 -7 -7 ------- Run | Yrd Mat Mat Mat Fac Sto Slots Evolved 6 | . . 2 2 2 . Power . | . . . . . . Propulsion 1 | . . . 1 . . Utility 5 | . . 2 1 2 . Weapon . | . . . . . . Parts Attached 57 | 6 10 12 9 6 14 Power 8 | 1 1 2 2 . 2 Engine 8 | 1 1 2 2 . 2 Core . | . . . . . . Reactor . | . . . . . . Propulsion 19 | 2 5 3 5 1 3 Treads 8 | . 2 . 3 1 2 Leg 5 | . . 3 2 . . Wheel 5 | 2 3 . . . . Hover 1 | . . . . . 1 Flight . | . . . . . . Utility 17 | 1 3 5 1 3 4 Device 5 | . . 1 1 2 1 Storage 3 | 1 1 1 . . . Processor 6 | . 1 2 . 1 2 Hackware 1 | . . . . . 1 Protection 2 | . 1 1 . . . Artifact . | . . . . . . Weapon 13 | 2 1 2 1 2 5 Energy Gun 7 | 2 1 2 . . 2 Energy Cannon . | . . . . . . Ballistic Gun 2 | . . . . . 2 Ballistic Cannon 3 | . . . 1 2 . Launcher 1 | . . . . . 1 Special Weapon . | . . . . . . Impact Weapon . | . . . . . . Slashing Weapon . | . . . . . . Piercing Weapon . | . . . . . . Special Melee Weapon . | . . . . . . Unidentified Prototypes 2 | . . . . . 2 Parts Lost 27 | . 3 5 . 3 16 Power 1 | . 1 . . . . Propulsion 10 | . 2 1 . 1 6 Utility 6 | . . 1 . 1 4 Weapon 10 | . . 3 . 1 6 Highest Loss Streak 8 | . 1 4 . 1 8 To Critical Strikes . | . . . . . . Average Backups 12 | 3 12 13 14 13 8 Power 2 | . 1 3 2 2 1 Propulsion 2 | 2 5 3 2 2 . Utility 5 | . 3 6 6 5 5 Weapon 2 | . . 1 4 3 1 Tool/Special . | . . . . . . Unused Backups 30 | . 3 5 13 2 7 Power 10 | . 1 3 3 1 2 Propulsion 5 | . 2 1 2 . . Utility 13 | . . 1 7 1 4 Weapon 2 | . . . 1 . 1 Tool/Special . | . . . . . . Average Slot Usage (%) 94 | . 97 95 99 99 72 Engine 9 | . 14 10 9 7 6 Treads 14 | . 20 . 15 22 7 Leg 5 | . . 15 11 . . Wheel 2 | . 6 5 . . . Device 8 | . . 4 8 21 5 Storage 9 | . 14 11 9 7 4 Processor 23 | . 4 27 27 24 34 Protection 1 | . 8 . . . . Energy Gun 12 | . 27 18 10 1 5 Ballistic Cannon 5 | . . . 7 13 2 Peak Build Rating 37 | 6 9 16 28 36 37 Average Rating 21 | 4 7 13 23 34 25 On Entrance 15 | . 6 9 15 28 36 Avg Prop Armor Cover (%) 4 | . . 4 . . . Naked Turns . | . . . . . . Heaviest Build 41 | 12 30 32 37 41 40 Greatest Support 66 | 26 40 30 66 66 66 Greatest Overweight (x) 6 | . 2 6 1 . 1 Average Overweight (x) . | . . . . . . Largest Inventory Capacity 15 | 8 15 15 15 15 15 Average Capacity 14 | 7 14 15 15 15 11 Most Carried 15 | 6 15 15 15 15 15 Average Carried 12 | 3 12 13 14 13 8 Final Capacity 15 | 8 15 15 15 15 5 Final Carried 15 | 6 15 15 15 15 5 Class Distribution -------------------- 52% | Mutant 25% | Skirmisher 18% | Scavenger-Mutant 4% | Scientist-Mutant Dominant Class ---------------- Mutant | -10/Materials Scavenger-Mutant | -9/Materials Mutant | -8/Materials Skirmisher | -7/Factory Mutant | -7/Storage Resources | -11 -10 -9 -8 -7 -7 ----------- Run | Yrd Mat Mat Mat Fac Sto Matter Collected 1659 | 222 150 230 352 272 433 Remotely . | . . . . . . Salvage Created 2440 | . 334 634 646 265 561 Parts 120 | . 15 31 38 13 23 Haulers Intercepted . | . . . . . . Recyclers Shooed 1 | . 1 . . . . Parts Field Recycled . | . . . . . . Retrieved Matter . | . . . . . . Parts Self-Destructed . | . . . . . . Prevented . | . . . . . . Parts Restored . | . . . . . . Kills | -11 -10 -9 -8 -7 -7 ------- Run | Yrd Mat Mat Mat Fac Sto Combat Hostiles Destroyed 62 | . 7 15 21 8 11 Guns 46 | . 7 15 15 . 9 Cannons 15 | . . . 6 8 1 Classes Destroyed 13 | . 6 4 1 1 1 Worker 2 | . 1 . . . 1 Builder 2 | . . . . . 2 Tunneler 1 | . . 1 . . . Recycler 3 | . 1 . . 1 1 Watcher 2 | . 1 . . . 1 Swarmer 8 | . 2 . 3 3 . Grunt 33 | . 4 9 12 3 5 Brawler 1 | . . 1 . . . Duelist 1 | . . 1 . . . Sentry 13 | . . 4 5 1 3 Hunter 3 | . . . 1 . 2 Programmer 2 | . . . . 1 1 Subdweller 1 | . 1 . . . . Best Kill Streak 6 | . 3 4 3 4 6 Combat Bots Only 5 | . 2 3 3 3 5 Max Kills in Single Turn 3 | . 1 1 1 1 3 Gunslinging . | . . . . . . Exploded . | . . . . . . Melee . | . . . . . . Uniques/NPCs Destroyed . | . . . . . . Combat | -11 -10 -9 -8 -7 -7 -------- Run | Yrd Mat Mat Mat Fac Sto Hostile Shots Fired 605 | . 75 67 60 60 343 Missed 188 | . 18 17 22 12 119 Hits 417 | . 57 50 38 48 224 Melee 3 | . . 3 . . . Projectile 414 | . 57 47 38 48 224 Critical Strikes 11 | . 1 3 3 2 2 Damage Taken 4755 | . 654 672 577 642 2210 Core 1187 | . 129 176 170 156 556 Absorbed by Shields . | . . . . . . Regen/Repaired (Parts) 327 | . . 162 . . 165 Core Remaining (%) 68 | 100 48 56 69 . . Volleys Fired 219 | . 39 49 56 22 53 Largest 2 | . 2 2 2 2 2 Hottest 121 | . 100 105 105 74 121 Shots Fired 398 | . 73 89 112 41 83 Gun 295 | . 73 89 70 . 63 Cannon 97 | . . . 42 41 14 Launcher 6 | . . . . . 6 Special . | . . . . . . Kinetic 122 | . . . 42 41 39 Thermal 270 | . 73 89 70 . 38 Explosive 6 | . . . . . 6 Electromagnetic . | . . . . . . Robot Hit Streak 18 | . 9 16 18 12 13 Robot Miss Streak 12 | . 5 3 12 4 2 Penetration Max 1 | . . . . . 1 Secondary Targets 3 | . . 2 . . 1 Max Gunslinging Chain 1 | . . 1 . . 1 Shots Hit Robots 309 | . 45 63 96 35 70 Core Hits 271 | . 18 50 131 23 49 Critical Kills . | . . . . . . Critical Parts Destroyed . | . . . . . . Critical Strikes 4 | . 2 . . 1 1 Burn 3 | . 2 . . . 1 Blast 1 | . . . . 1 . Melee Attacks . | . . . . . . Impact . | . . . . . . Slashing . | . . . . . . Piercing . | . . . . . . Sneak Attacks . | . . . . . . Combat Hostiles . | . . . . . . Follow-up Attacks . | . . . . . . Damage Inflicted 5297 | . 612 898 1461 679 1647 Guns 3490 | . 612 892 979 . 1007 Cannons 1359 | . . . 482 634 243 Explosions 433 | . . . . 45 388 Melee . | . . . . . . Ramming 15 | . . 6 . . 9 Kinetic 1905 | . . . 482 634 789 Thermal 2944 | . 612 892 979 . 461 Explosive 388 | . . . . . 388 Electromagnetic 45 | . . . . 45 . Impact . | . . . . . . Slashing . | . . . . . . Piercing . | . . . . . . Highest Corruption 4 | . 2 . . 2 4 Average Corruption 1 | . 1 . . 1 2 Corruption Purged . | . . . . . . Corruption Blocked . | . . . . . . Effects 24 | . 3 . . 7 14 Message Errors 2 | . 1 . . 1 . Matter Fused 10 | . 1 . . 4 5 Heat Flow Errors 4 | . . . . 1 3 Energy Discharges 3 | . . . . . 3 Parts Rejected 2 | . . . . 1 1 Data Loss (major) 1 | . 1 . . . . Alerts 1 | . . . . . 1 Weapon Failures 1 | . . . . . 1 Overload Shots . | . . . . . . Overflow Damage 50 | . . . . 41 9 Projectiles 41 | . . . . 41 . Explosions 9 | . . . . . 9 Melee . | . . . . . . Knockbacks 42 | . . . 23 15 4 Impact . | . . . . . . Kinetic 41 | . . . 23 14 4 Secondary 1 | . . . . 1 . Self-Inflicted Damage 74 | . . 3 . . 71 Shots 4 | . . . . . 4 Rammed 6 | . . 2 . . 4 Targets Rammed 6 | . . 2 . . 4 Kicked . | . . . . . . Crushed . | . . . . . . Highest Temperature 498 | . 498 338 391 234 230 Average Temperature 128 | . 180 141 88 76 93 Received Heat Transfer 1665 | . 240 276 324 135 690 Effects 15 | . 7 6 2 . . Shutdowns 2 | . 1 . 1 . . Energy Bleed 5 | . 2 3 . . . Interference 7 | . 3 3 1 . . Damage (minor) 1 | . 1 . . . . Siege Activations . | . . . . . . Martial Activations . | . . . . . . Shielding Activations . | . . . . . . Robots Disrupted . | . . . . . . Combat Hostiles . | . . . . . . Robots Corrupted . | . . . . . . Combat Hostiles . | . . . . . . Parts Fried . | . . . . . . Impact Corruptions . | . . . . . . Robots Melted 1 | . . . . . 1 Combat Hostiles 1 | . . . . . 1 Parts Melted 11 | . 5 2 . . 4 Heat Transferred 6402 | . 1961 1909 1385 . 1147 Parts Sabotaged . | . . . . . . Parts Stolen . | . . . . . . Parts Stripped . | . . . . . . Power Chain Reactions . | . . . . . . Alert | -11 -10 -9 -8 -7 -7 ------- Run | Yrd Mat Mat Mat Fac Sto Maximum Alert Level . | . . . . . . Low Security (%) 100 | 100 100 100 100 100 100 Level 1 . | . . . . . . Level 2 . | . . . . . . Level 3 . | . . . . . . Level 4 . | . . . . . . Level 5 . | . . . . . . High Security . | . . . . . . Max Security . | . . . . . . Peak Influence 174 | . 96 93 174 140 84 Initial 65 | . . . 33 65 . Average 39 | . 16 22 83 33 27 Influence Increases 2032 | . 228 434 627 283 460 Destroy 0b10 Robot/C 1240 | . 120 300 420 160 240 Destroy 0b10 Robot/NC 50 | . 15 5 . 5 25 Destroy Leader 344 | . 32 70 110 40 92 Allied During Kill 2 | . . . . . 2 Successful Hack 26 | . . 14 7 2 3 Disable Machine 75 | . . . . 60 15 Destroy Structure 40 | . 1 . . 1 38 Partial Spotted 30 | . . . 15 . 15 Lose Combat Pursuer 225 | . 60 45 75 15 30 Influence Decreases 2032 | . 228 353 562 429 460 Entered New Map 129 | . . . 48 81 . Time Decay 1636 | . 211 303 514 328 280 Lost Part 247 | . 17 50 . 20 160 Lost Ally 20 | . . . . . 20 Squads Dispatched 17 | . . 1 3 5 8 Investigation 4 | . . 1 . 2 1 Extermination 4 | . . . . 2 2 Reinforcement 7 | . . . 3 1 3 Assault 2 | . . . . . 2 Garrison . | . . . . . . Intercept . | . . . . . . Searches Triggered . | . . . . . . Construction Impeded 1 | . . . . . 1 Haulers Reinforced . | . . . . . . Active Scanning Responses . | . . . . . . Cargo Convoy Interrupts . | . . . . . . Stealth | -11 -10 -9 -8 -7 -7 --------- Run | Yrd Mat Mat Mat Fac Sto Distress Signals 6 | . 1 . 3 . 2 Communications Jammed . | . . . . . . Distress Signals . | . . . . . . Times Spotted 119 | . 22 19 35 17 26 Peak Tracking Total 5 | . 4 3 4 4 5 Tactical Retreats 12 | . 4 2 4 1 1 Traps | -11 -10 -9 -8 -7 -7 ------- Run | Yrd Mat Mat Mat Fac Sto Traps Triggered 10 | . 3 2 1 3 1 Indirectly . | . . . . . . Trap Hack Attempts . | . . . . . . Triggered . | . . . . . . Disarmed . | . . . . . . Reprogrammed . | . . . . . . Reused . | . . . . . . Traps Extracted . | . . . . . . Installed . | . . . . . . Triggered . | . . . . . . Machines | -11 -10 -9 -8 -7 -7 ---------- Run | Yrd Mat Mat Mat Fac Sto Machines Disabled 5 | . . . . 4 1 Max in Single Turn 3 | . . . . 3 1 Machines Repaired . | . . . . . . Machines Dismantled . | . . . . . . Machines Sabotaged . | . . . . . . Overloaded Fab Kills . | . . . . . . Hacking | -11 -10 -9 -8 -7 -7 --------- Run | Yrd Mat Mat Mat Fac Sto Machines Accessed 24 | . 4 5 5 4 6 Terminals 15 | . 2 2 4 2 5 Fabricators . | . . . . . . Repair Stations 3 | . . 1 . 1 1 Recycling Units 3 | . 2 . 1 . . Scanalyzers 3 | . . 2 . 1 . Garrison Access . | . . . . . . Total Hacks 45 | . 5 16 8 7 9 Successful 27 | . 4 10 5 2 6 Failed 17 | . 1 5 3 5 3 Catastrophic 4 | . . 1 1 1 1 Database Lockouts 1 | . . 1 . . . Manual 1 | . . . . . 1 Terminals 23 | . 2 5 7 3 6 Fabricators . | . . . . . . Repair Stations 11 | . . 5 . 3 3 Recycling Units 4 | . 3 . 1 . . Scanalyzers 7 | . . 6 . 1 . Garrison Access . | . . . . . . Terminal Hacks 13 | . 2 2 4 1 4 Record 3 | . . . . 1 2 Robot Analysis 1 | . . 1 . . . Open Door 1 | . . . . . 1 Branch Access Points 2 | . . . 1 . 1 Emergency Access Points 1 | . . . 1 . . Scanalyzer Index 1 | . . . 1 . . Locate Traps 1 | . 1 . . . . Zone Layout 3 | . 1 1 1 . . Fabricator Hacks . | . . . . . . Repair Station Hacks 7 | . . 4 . 1 2 Scan Component 4 | . . 2 . 1 1 Repair 3 | . . 2 . . 1 Recycling Unit Hacks 3 | . 2 . 1 . . Report Inventory 3 | . 2 . 1 . . Scanalyzer 4 | . . 4 . . . Retrieve Study 4 | . . 4 . . . Garrison Access Hacks . | . . . . . . Unauthorized Hacks . | . . . . . . Terminals . | . . . . . . Fabricators . | . . . . . . Repair Stations . | . . . . . . Recycling Units . | . . . . . . Scanalyzers . | . . . . . . Garrison Access . | . . . . . . Data Cores Recovered . | . . . . . . Used . | . . . . . . Hacking Detections 13 | . 2 4 1 2 4 Full Trace Events 2 | . . 1 . 1 . Feedback Events . | . . . . . . Feedback Blocked . | . . . . . . Robot Schematics Acquired . | . . . . . . Robots Built . | . . . . . . Authchips . | . . . . . . Time . | . . . . . . Total Robot Build Rating . | . . . . . . Part Schematics Acquired . | . . . . . . Parts Built . | . . . . . . Authchips . | . . . . . . Time . | . . . . . . Total Part Build Rating . | . . . . . . Part Studies Acquired 4 | . . 4 . . . Parts Repaired 3 | . . 2 . . 1 Time 102 | . . 64 . . 38 Parts Recycled . | . . . . . . Recycled Matter . | . . . . . . Retrieved Matter . | . . . . . . Retrieved Components . | . . . . . . Parts Scanalyzed . | . . . . . . Part Schematics Acquired . | . . . . . . Parts Damaged . | . . . . . . Bothacking | -11 -10 -9 -8 -7 -7 ------------ Run | Yrd Mat Mat Mat Fac Sto Used RIF Installer . | . . . . . . Robots Hacked . | . . . . . . Non-combat . | . . . . . . Combat . | . . . . . . Robot Hacks Applied . | . . . . . . Relay Couplers Released . | . . . . . . Fabnet Peak Effective % . | . . . . . . Robots Rewired . | . . . . . . Allies Hacked . | . . . . . . Hacks Repelled . | . . . . . . Allies | -11 -10 -9 -8 -7 -7 -------- Run | Yrd Mat Mat Mat Fac Sto Total Allies 2 | . . . . . 2 Largest Group 2 | . . . . . 2 Highest-Rated Group 62 | . . . . . 62 Highest-Rated Ally 31 | . . . . . 31 Total Orders . | . . . . . . Ally Attacks 6 | . . . . . 6 Total Damage 129 | . . . . . 129 Kills 1 | . . . . . 1 Allies Corrupted . | . . . . . . Allies Melted . | . . . . . . Intel | -11 -10 -9 -8 -7 -7 ------- Run | Yrd Mat Mat Mat Fac Sto Active Infowar (turns) 4601 | . . 1060 1416 1283 842 Optics 4586 | . . 1060 1401 1283 842 Sensors 1476 | . . . . 1282 194 Structural 2209 | . . 456 . 1283 470 Seismic 1779 | . . . 1415 364 . Machine Analysis 1132 | . . . . 290 842 Robot Analysis Total 1 | . . 1 . . . Derelict Logs Recovered . | . . . . . . Drone Launches . | . . . . . . Drone Recoveries . | . . . . . . Exploration | -11 -10 -9 -8 -7 -7 ------------- Run | Yrd Mat Mat Mat Fac Sto Turns Passed 5723 | 59 1063 1060 1416 1283 842 Spaces Moved 2987 | 48 646 433 722 712 426 Core 24 | 3 . 1 . . 20 Treads 1687 | . 416 . 398 712 161 Legs 635 | . . 311 324 . . Wheels 396 | 45 230 121 . . . Hover 245 | . . . . . 245 Flight . | . . . . . . Fastest Speed 50 | 50 90 95 110 145 50 Average Speed 138 | 85 136 155 129 145 130 Slowest Speed 350 | 90 160 350 225 145 225 Overloaded Moves . | . . . . . . Propulsion Burnouts . | . . . . . . Robots Hopped . | . . . . . . Potential Cave-ins . | . . . . . . Cave-ins Triggered . | . . . . . . Exploration Rate (%) 37 | 3 65 30 56 24 47 Regions Visited 5 Branch Regions 1 Pre-discovered Areas . | . . . . . . Known Exits Taken 4 | . 1 1 1 1 . Unknown Exits Taken 1 | 1 . . . . . Scrap Searched . | . . . . . . Spaces Dug . | . . . . . . Terrain Destroyed 36 | . . . . 1 35 Melee . | . . . . . . Projectile 1 | . . . . 1 . AOE 35 | . . . . . 35 Terrain Rammed . | . . . . . . Walls Destroyed . | . . . . . . Machines Disabled . | . . . . . . Actions | -11 -10 -9 -8 -7 -7 --------- Run | Yrd Mat Mat Mat Fac Sto Total 4188 | 62 753 729 1096 924 624 Wait 802 | 3 33 201 272 174 119 Move 2982 | 47 645 432 721 711 426 Hop . | . . . . . . Pick Up 60 | 6 17 10 16 7 4 Fast Attach 27 | 6 4 9 3 1 4 Attach 28 | . 4 6 2 6 10 Detach 4 | . 1 2 . 1 . Swap 22 | . 4 8 8 . 2 Drop 38 | . 6 10 18 2 2 Fire 219 | . 39 49 56 22 53 Melee . | . . . . . . Ram 4 | . . 2 . . 2 Kick . | . . . . . . Crush 2 | . . . . . 2 Escape Stasis . | . . . . . . Rewire . | . . . . . . Trap . | . . . . . . Miscellaneous . | . . . . . . Route ------- -11/Scrapyard -10/Materials (discovered 4 exits: *Mat / *Min x2 / *Sub) -9/Materials -8/Materials -7/Factory (discovered 2 exits: *Sto / *Low) -7/Storage (discovered 1 exit: Rec) History --------- Turn | Location | Event 4 | -11/Scrapyard | Discovered new exit (range 16) 60 | -11/Scrapyard | Entered Materials 265 | -10/Materials | Discovered new exit (range 16) 317 | -10/Materials | Build established: Mutant 373 | -10/Materials | Discovered new exit (range 9) 790 | -10/Materials | Identified exit to Mines 860 | -10/Materials | Derelicts attacked the area 889 | -10/Materials | Core integrity fell below 50% 922 | -10/Materials | Discovered new exit (range 8) 1039 | -10/Materials | Identified exit to Subcaves 1106 | -10/Materials | Discovered exit to Mines (range 12) 1122 | -10/Materials | Identified exit to Materials 1123 | -10/Materials | Entered another Materials area 1123 | -9/Materials | Evolved 2 slots: Utility x2 1431 | -9/Materials | Lost 4 parts (1n3w) 1809 | -9/Materials | Build established: Scavenger-Mutant 1862 | -9/Materials | Repaired Imp. Aluminum Leg+ 1896 | -9/Materials | Repaired Imp. Aluminum Leg+ 1952 | -9/Materials | Central database locked down 2102 | -9/Materials | Discovered new exit (range 3) 2104 | -9/Materials | Identified exit to Materials 2183 | -9/Materials | Entered another Materials area 2183 | -8/Materials | Evolved 2 slots: Propulsion x1, Utility x1 3078 | -8/Materials | Build established: Mutant 3558 | -8/Materials | Discovered new exit (range 18) 3598 | -8/Materials | Identified exit to Factory 3599 | -8/Materials | Entered Factory 3599 | -7/Factory | Evolved 2 slots: Utility x2 3902 | -7/Factory | Build established: Skirmisher 4778 | -7/Factory | Discovered new exit (range 7) 4786 | -7/Factory | Identified exit to Lower Caves 4865 | -7/Factory | Discovered new exit (range 12) 4881 | -7/Factory | Identified exit to Storage 4882 | -7/Factory | Entered Storage 5119 | -7/Storage | Lost 8 parts (4n1u3w) 5211 | -7/Storage | Repaired Adv. Treads 5316 | -7/Storage | Core integrity fell below 50% 5327 | -7/Storage | Build established: Mutant 5448 | -7/Storage | Core integrity fell below 20% 5484 | -7/Storage | Lost 5 parts (1n2u2w) 5491 | -7/Storage | Met a pair of Derelict thieves 5700 | -7/Storage | Identified exit to Recycling 5724 | -7/Storage | Destroyed by P-60 Hacker with Shock Rifle Last Messages --------------- 4A. 05661_ >> Machine Analyzer network decryption results: 05661_ Terminal x1 05664_ K-01 Serf cleans the Terminal. 05673_ System corrupted: Heat flow error (+162). 05681_ Acquired Imp. Signal Interpreter. 05686_ Connecting with Door Terminal... 05699_ System corrupted: Energy discharge (-120). 05700_ Connecting with Terminal... >>Access(Branch) Found 1 branch access point: (13,10) Recycling Map updated. 05701_ K-01 Serf cleans the Terminal. 05717_ System corrupted: Energy discharge (-150). 05723_ Slammed into P-60 Hacker. 05724_ Destabilizing: System corrupted (+2). Map ----- +----------------------------------------------------+ | ????????????## ####??????????????????? | | ?????#####??## T##??????????????????? | | ?????#####??## ""##??????????????????? | | ?????## """ # ##########????????????? | | ?????## """ # ####################??? | | ?????## """ + + #??? | | ?????## # ############+###T###??? | | ?????## # ##########?# T####????? | | ?????## # ##?????????#"##???????? | | ????########## ##????????????????????? | | ???########### ##????????????????????? | | ???## ##????????????????????? | | ???##%##### #####????????????????????? | | ???## ##### #####????????????????????? | | ????# #??## ##???????????????????????? | | ????#%##### ########?????????????????? | | ????#!#####+########?????????????????? | | ???## ### ##?????????????????? | | ???# ! ## k ##?????????????????? | | ???# ## """ """ ##?????????????????? | | ???# ## """ """ ##??????###????????? | | ???###### """ """ ##??#####T##???????? | | ???????## ##??#! !" #???????? | | ???????## ##??#!!! #???????? | | ??????### p ######### #???##??? | | ??????#######@##############+####T#### | | ??????## a | | ??????## | | ??????## | | ??????################################ | | ??????#######################????????? | | ?????????????????????????????????????? | | ?????????????????????????????????????? | | | | | | | | | | | | | | | | | | | | | | | | | | | | | | | | | | | +----------------------------------------------------+ Best States ------------- Heat Dissipation 34 Energy Generation 19 Energy Capacity 800 Matter Stores 300 Matter Capacity 300 Sight Range 18 Robot Scan Range 15 Terrain Scan Density 10 Armor Coverage 150 Evasion (%) 55 Targeting Accuracy 6 Armor Integrity Analysis 30 Recoil Reduction 7 Offensive Hacking 10 Item Schematics ----------------- None Robot Schematics ------------------ None Fabricated ------------ Nothing Repaired ---------- Imp. Aluminum Leg | 7% | -9/Materials Imp. Aluminum Leg | 31% | -9/Materials Adv. Treads | 2% | -7/Storage Studied --------- Imp. Aluminum Leg | -9/Materials | Hacked Ion Engine | -9/Materials | Hacked Sml. Laser | -9/Materials | Hacked Spread Laser | -9/Materials | Hacked Alien Tech Used ----------------- None Achievements -------------- None Challenges ------------ None Game ------ Seed FusionBorgMaterializer Manual? 0 Play Time 01:36:50 Cumulative 31.5 hours Start 2026.04.12 @ 12:45:40 End 2026.04.12 @ 21:27:23 Sessions 1 Manual Loads 0 Difficulty Rogue Special Mode None Game No. 22 Rogue 22 Adventurer 0 Explorer 0 Win Type - Total 0 Types 0/0/0/0/0/0/0/0/0/0 Lore% 13 Gallery% 19 Achievement% 16 Wizard Run 0 Options --------- Layout 1 ASCII 0 Keyboard 1 Movement Numpad Keybinds 0 Fullscreen 1 Font 16/Terminus Map View 50x40 Zoom Use 0% Tactical HUD 1 Map Filters NONE Filters NONE Steam SD RUN: 96717164-5ba9-4cd2-9c64-ce53586196f7